Workbook

Sheet Réglement
B2: RÈGLEMENT DU COMPTEUR DE CORDÉE | E2: CHAUSSONS | F2: Mètres parcourus
B3: Article 1 | C3: Les cordées sont établies par l'enseignant | E3: BLANCS | F3: 0
B4: Article 2 | C4: Les chaussons se gagnent collectivement | E4: JAUNES | F4: 40
B5: Article 3 | C5: Le compteur se déroule sur l'ensemble du cycle | E5: ORANGES | F5: 80
B6: Article 4 | C6: Le comptage des points se fait tel que : 1 mètre grimpé = 1 point | E6: VERTS | F6: 100
B7: Article 5 | C7: Des bonus de points peuvent être accordés en fonction de la difficulté de la voie ou des modalités de grimpe utilisées | E7: BLEUS | F7: 130
B8: Article 6 | C8: Un élève ne peut grimper qu'une fois la même voie par leçon sauf article 7 | E8: ROUGES | F8: 160
B9: Article 7 | C9: Une voie peut être grimpée une deuxième fois à condition de l'enchainer immédiatement sans se désencorder | E9: NOIRS | F9: 200
B10: Article 8 | C10: Les voies peuvent être grimpées plusieurs fois dans le cycle et les points ainsi gagnés s'additionnent | E10: D'ARGENT | F10: 250
B11: Article 9 | C11: Les voies doivent être grimpées avec corde molle. À défaut les points sont divisés par 2 | E11: D'OR | F11: 300
B12: Article 10 | C12: Les règles de sécurité sont à respecter. En cas de non respect les points de la séance ne sont pas attribués | E12: DE DIAMANT | F12: 400
B13: Article 11 | C13: Un score personnel est affiché et permet de repérer les progrès de chacun des membres de la cordée | E13: DE PLATINE | F13: 500

Sheet Compteur de cordée (Séance)
D1: =NOW() -> 2018-05-10T16:33:38.640
A2: Capitalisation | D2: Cordée | E2: NOMS | F2: Capital | G2: V1 | H2: V2 | I2: V3 | J2: V4 | K2: V5 | L2: V6 | M2: V7 | N2: V8 | O2: V9 | P2: V10 | Q2: V11 | R2: V12 | S2: V13 | T2: V14 | U2: V15 | V2: V16 | W2: V17 | X2: V18 | Y2: V19 | Z2: V20 | AA2: V21 | AB2: V22 | AC2: V23 | AD2: V24 | AE2: Séance | AF2: Total cordée
A3: =F3+B3 -> 208 | B3: =SUM(G3:AD3) -> 21 | D3: 1 | E3: Alexandre | F3: 187 | G3: 7 | P3: 7 | AD3: 7 | AE3: =SUM(G3:AD3) -> 21 | AF3: =SUM(F3:AD5) -> 359
A4: =F4+B4 -> 132 | B4: 18 | E4: Arthur | F4: 114 | G4: 7 | P4: 5 | AD4: 6 | AE4: =SUM(G4:AD4) -> 18
A5: 19 | B5: 4 | E5: Téo | F5: 15 | G5: 3 | P5: 1 | AE5: 4
A6: 93 | B6: 10 | D6: 2 | E6: Axelle | F6: 83 | H6: 7 | R6: 3 | AE6: 10 | AF6: =SUM(F6:AD8) -> 225
A7: 54 | B7: 9 | E7: Chloé | F7: 45 | H7: 7 | R7: 2 | AE7: 9
A8: 78 | B8: 10 | E8: Raphael | F8: 68 | H8: 7 | R8: 3 | AE8: 10
A9: 257 | B9: 21 | D9: 3 | E9: Lilou | F9: 236 | V9: 7 | X9: 7 | Y9: 7 | AE9: 21 | AF9: =SUM(F9:AD11) -> 578
A10: 186 | B10: 18 | E10: Mathilde | F10: 168 | V10: 5 | X10: 7 | Y10: 6 | AE10: 18
A11: 135 | B11: 12 | E11: Louna | F11: 123 | V11: 3 | X11: 4 | Y11: 5 | AE11: 12
A12: 65 | B12: 3 | D12: 4 | E12: Dorian | F12: 62 | AD12: 3 | AE12: 3 | AF12: =SUM(F12:AD14) -> 249
A13: 83 | B13: 5 | E13: Armand | F13: 78 | AD13: 5 | AE13: 5
A14: 101 | B14: 0 | E14: Mathys | F14: 101 | AE14: 0
A15: 122 | B15: 14 | D15: 5 | E15: Julie | F15: 108 | G15: 7 | H15: 7 | AE15: 14 | AF15: =SUM(F15:AD17) -> 306
A16: 118 | B16: 14 | E16: Lesly | F16: 104 | G16: 7 | H16: 7 | AE16: 14
A17: 66 | B17: 12 | E17: Mathilda | F17: 54 | G17: 5 | H17: 7 | AE17: 12
A18: 161 | B18: 21 | D18: 6 | E18: Léa | F18: 140 | H18: 7 | AC18: 7 | AD18: 7 | AE18: 21 | AF18: =SUM(F18:AD20) -> 415
A19: 137 | B19: 16 | E19: Mathéo | F19: 121 | H19: 3 | AC19: 6 | AD19: 7 | AE19: 16
A20: 117 | B20: 14 | E20: Gwendoline | F20: 103 | H20: 1 | AC20: 6 | AD20: 7 | AE20: 14
A21: 0 | B21: 0 | D21: 7 | F21: 0 | AE21: 0 | AF21: =SUM(F21:AD23) -> 0
A22: 0 | B22: 0 | F22: 0 | AE22: 0
A23: 0 | B23: 0 | F23: 0 | AE23: 0
A24: 0 | B24: 0 | D24: 8 | F24: 0 | AE24: 0 | AF24: =SUM(F24:AD26) -> 0
A25: 0 | B25: 0 | F25: 0 | AE25: 0
A26: 0 | B26: 0 | F26: 0 | AE26: 0
A27: 0 | B27: 0 | D27: Cordée de 4 n°1 | F27: 0 | AE27: 0 | AF27: =SUM(F27:AD30) -> 0
A28: 0 | B28: 0 | F28: 0 | AE28: 0
A29: 0 | B29: 0 | F29: 0 | AE29: 0
A30: 0 | B30: 0 | F30: 0 | AE30: 0
A31: 0 | B31: 0 | D31: Cordée de 4 n°2 | F31: 0 | AE31: 0 | AF31: =SUM(F31:AD34) -> 0
A32: 0 | B32: 0 | F32: 0 | AE32: 0
A33: 0 | B33: 0 | F33: 0 | AE33: 0
A34: 0 | B34: 0 | F34: 0 | AE34: 0

Sheet Compteur de cordée (Bilan)
C1: =NOW() -> 2018-05-10T16:33:38.640
C2: Cordée | D2: NOMS | E2: V1 | F2: V2 | G2: V3 | H2: V4 | I2: V5 | J2: V6 | K2: V7 | L2: V8 | M2: V9 | N2: V10 | O2: V11 | P2: V12 | Q2: V13 | R2: V14 | S2: V15 | T2: V16 | U2: V17 | V2: V18 | W2: V19 | X2: V20 | Y2: V21 | Z2: V22 | AA2: V23 | AB2: V24 | AC2: Cpt. | AD2: Total | AE2: Total cordée | AG2: Résultats du jour | BG2: Addition du bilan
C3: 1 | D3: ='Compteur de cordée (Séance)'!E3 -> Alexandre | E3: 21 | F3: 14 | G3: 7 | H3: 0 | I3: 0 | J3: 0 | K3: 0 | L3: 0 | M3: 12 | N3: 21 | O3: 0 | Q3: 0 | R3: 7 | S3: 14 | T3: 7 | U3: 20 | V3: 7 | W3: 5 | X3: 0 | Y3: 6 | Z3: 0 | AA3: 11 | AB3: 35 | AC3: =AD3 -> 187 | AD3: =SUM(E3:AB3) -> 187 | AE3: =SUM(AD3:AD5) -> 316 | AG3: 7 | AP3: 7 | BD3: 7 | BG3: =AG3+E3 -> 28 | BH3: =AH3+F3 -> 14 | BI3: 7 | BJ3: 0 | BK3: 0 | BL3: 0 | BM3: 0 | BN3: 0 | BO3: 12 | BP3: 28 | BQ3: 0 | BR3: 0 | BS3: 0 | BT3: 7 | BU3: 14 | BV3: 7 | BW3: 20 | BX3: 7 | BY3: 5 | BZ3: 0 | CA3: 6 | CB3: 0 | CC3: 11 | CD3: 42
D4: ='Compteur de cordée (Séance)'!E4 -> Arthur | E4: 7 | F4: 32 | G4: 7 | H4: 0 | I4: 0 | J4: 0 | K4: 0 | L4: 0 | M4: 21 | N4: 12 | O4: 0 | P4: 0 | Q4: 6 | R4: 7 | S4: 0 | T4: 0 | U4: 5 | V4: 0 | W4: 2 | X4: 0 | Y4: 0 | Z4: 0 | AA4: 2 | AB4: 13 | AC4: 114 | AD4: =SUM(E4:AB4) -> 114 | AG4: 7 | AP4: 5 | BD4: 6 | BG4: =AG4+E4 -> 14 | BH4: 32 | BI4: 7 | BJ4: 0 | BK4: 0 | BL4: 0 | BM4: 0 | BN4: 0 | BO4: 21 | BP4: 17 | BQ4: 0 | BR4: 0 | BS4: 6 | BT4: 7 | BU4: 0 | BV4: 0 | BW4: 5 | BX4: 0 | BY4: 2 | BZ4: 0 | CA4: 0 | CB4: 0 | CC4: 2 | CD4: 19
D5: ='Compteur de cordée (Séance)'!E5 -> Téo | E5: 6 | F5: 2 | G5: 1 | H5: 0 | I5: 0 | J5: 0 | K5: 0 | L5: 0 | M5: 2 | N5: 1 | O5: 0 | P5: 0 | Q5: 0 | R5: 0 | U5: 1 | V5: 0 | W5: 2 | X5: 0 | Y5: 0 | Z5: 0 | AA5: 0 | AB5: 0 | AC5: 15 | AD5: 15 | AG5: 3 | AP5: 1 | BG5: 9 | BH5: 2 | BI5: 1 | BJ5: 0 | BK5: 0 | BL5: 0 | BM5: 0 | BN5: 0 | BO5: 2 | BP5: 2 | BQ5: 0 | BR5: 0 | BS5: 0 | BT5: 0 | BU5: 0 | BV5: 0 | BW5: 1 | BX5: 0 | BY5: 2 | BZ5: 0 | CA5: 0 | CB5: 0 | CC5: 0 | CD5: 0
C6: 2 | D6: ='Compteur de cordée (Séance)'!E6 -> Axelle | E6: 12 | F6: 17 | G6: 0 | H6: 5 | I6: 0 | J6: 0 | K6: 0 | L6: 0 | N6: 7 | O6: 0 | Q6: 0 | R6: 3 | S6: 0 | T6: 9 | U6: 21 | V6: 7 | W6: 0 | X6: 0 | Y6: 0 | Z6: 0 | AA6: 0 | AB6: 2 | AC6: 83 | AD6: 83 | AE6: =SUM(AD6:AD8) -> 196 | AH6: 7 | AR6: 3 | BG6: 12 | BH6: 24 | BI6: 0 | BJ6: 5 | BK6: 0 | BL6: 0 | BM6: 0 | BN6: 0 | BO6: 0 | BP6: 7 | BQ6: 0 | BR6: 3 | BS6: 0 | BT6: 3 | BU6: 0 | BV6: 9 | BW6: 21 | BX6: 7 | BY6: 0 | BZ6: 0 | CA6: 0 | CB6: 0 | CC6: 0 | CD6: 2
D7: ='Compteur de cordée (Séance)'!E7 -> Chloé | E7: 10 | F7: 7 | G7: 0 | H7: 0 | I7: 0 | J7: 0 | K7: 0 | L7: 0 | M7: 3 | N7: 0 | O7: 0 | P7: 2 | Q7: 0 | R7: 2 | S7: 0 | T7: 14 | V7: 0 | W7: 0 | X7: 0 | Y7: 0 | Z7: 0 | AA7: 0 | AB7: 7 | AC7: 45 | AD7: 45 | AH7: 7 | AR7: 2 | BG7: 10 | BH7: 14 | BI7: 0 | BJ7: 0 | BK7: 0 | BL7: 0 | BM7: 0 | BN7: 0 | BO7: 3 | BP7: 0 | BQ7: 0 | BR7: 4 | BS7: 0 | BT7: 2 | BU7: 0 | BV7: 14 | BW7: 0 | BX7: 0 | BY7: 0 | BZ7: 0 | CA7: 0 | CB7: 0 | CC7: 0 | CD7: 7
D8: ='Compteur de cordée (Séance)'!E8 -> Raphael | E8: 2 | F8: 7 | G8: 0 | H8: 4 | I8: 0 | J8: 0 | K8: 0 | L8: 0 | M8: 12 | N8: 0 | O8: 0 | P8: 3 | Q8: 0 | R8: 9 | S8: 7 | T8: 17 | U8: 0 | V8: 0 | W8: 0 | X8: 0 | Y8: 0 | Z8: 0 | AA8: 0 | AB8: 7 | AC8: 68 | AD8: 68 | AH8: 7 | AR8: 3 | BG8: 2 | BH8: 14 | BI8: 0 | BJ8: 4 | BK8: 0 | BL8: 0 | BM8: 0 | BN8: 0 | BO8: 12 | BP8: 0 | BQ8: 0 | BR8: 6 | BS8: 0 | BT8: 9 | BU8: 7 | BV8: 17 | BW8: 0 | BX8: 0 | BY8: 0 | BZ8: 0 | CA8: 0 | CB8: 0 | CC8: 0 | CD8: 7
C9: 3 | D9: ='Compteur de cordée (Séance)'!E9 -> Lilou | E9: 31 | F9: 12 | G9: 0 | H9: 0 | I9: 0 | J9: 5 | K9: 7 | L9: 0 | M9: 22 | N9: 35 | O9: 7 | P9: 17 | Q9: 7 | R9: 5 | S9: 7 | T9: 27 | U9: 0 | V9: 7 | W9: 7 | X9: 11 | Y9: 22 | Z9: 0 | AA9: 7 | AB9: 0 | AC9: 236 | AD9: 236 | AE9: =SUM(AD9:AD11) -> 527 | AV9: 7 | AX9: 7 | AY9: 7 | BG9: 31 | BH9: 12 | BI9: 0 | BJ9: 0 | BK9: 0 | BL9: 5 | BM9: 7 | BN9: 0 | BO9: 22 | BP9: 35 | BQ9: 7 | BR9: 17 | BS9: 7 | BT9: 5 | BU9: 7 | BV9: 34 | BW9: 0 | BX9: 14 | BY9: 14 | BZ9: 11 | CA9: 22 | CB9: 0 | CC9: 7 | CD9: 0
D10: ='Compteur de cordée (Séance)'!E10 -> Mathilde | E10: 11 | F10: 26 | G10: 0 | H10: 0 | I10: 0 | J10: 0 | K10: 0 | L10: 5 | M10: 1 | N10: 41 | O10: 0 | P10: 0 | Q10: 0 | R10: 0 | S10: 7 | T10: 19 | U10: 14 | V10: 11 | W10: 6 | X10: 0 | Y10: 6 | Z10: 0 | AA10: 0 | AB10: 21 | AC10: 168 | AD10: 168 | AV10: 5 | AX10: 7 | AY10: 6 | BG10: 11 | BH10: 26 | BI10: 0 | BJ10: 0 | BK10: 0 | BL10: 0 | BM10: 0 | BN10: 5 | BO10: 1 | BP10: 41 | BQ10: 0 | BR10: 0 | BS10: 0 | BT10: 0 | BU10: 7 | BV10: 24 | BW10: 14 | BX10: 18 | BY10: 12 | BZ10: 0 | CA10: 6 | CB10: 0 | CC10: 0 | CD10: 21
D11: ='Compteur de cordée (Séance)'!E11 -> Louna | E11: 11 | F11: 12 | G11: 0 | H11: 0 | I11: 0 | J11: 0 | K11: 0 | L11: 5 | M11: 3 | N11: 19 | O11: 10 | P11: 9 | Q11: 0 | R11: 8 | S11: 3 | T11: 7 | U11: 7 | V11: 4 | W11: 5 | X11: 10 | Y11: 0 | Z11: 0 | AA11: 0 | AB11: 10 | AC11: 123 | AD11: 123 | AV11: 3 | AX11: 4 | AY11: 5 | BG11: 11 | BH11: 12 | BI11: 0 | BJ11: 0 | BK11: 0 | BL11: 0 | BM11: 0 | BN11: 5 | BO11: 3 | BP11: 19 | BQ11: 10 | BR11: 9 | BS11: 0 | BT11: 8 | BU11: 3 | BV11: 10 | BW11: 7 | BX11: 8 | BY11: 10 | BZ11: 10 | CA11: 0 | CB11: 0 | CC11: 0 | CD11: 10
C12: 4 | D12: ='Compteur de cordée (Séance)'!E12 -> Dorian | E12: 8 | F12: 3 | G12: 0 | H12: 0 | I12: 0 | J12: 0 | K12: 0 | L12: 0 | M12: 13 | N12: 0 | O12: 0 | Q12: 0 | R12: 0 | S12: 3 | T12: 10 | U12: 0 | V12: 0 | W12: 2 | X12: 0 | Y12: 0 | Z12: 0 | AA12: 0 | AB12: 23 | AC12: 62 | AD12: 62 | AE12: =SUM(AD12:AD14) -> 241 | BG12: 8 | BH12: 3 | BI12: 0 | BJ12: 0 | BK12: 0 | BL12: 0 | BM12: 0 | BN12: 0 | BO12: 13 | BP12: 0 | BQ12: 0 | BR12: 0 | BS12: 0 | BT12: 0 | BU12: 3 | BV12: 10 | BW12: 0 | BX12: 0 | BY12: 2 | BZ12: 0 | CA12: 0 | CB12: 0 | CC12: 0 | CD12: 23
D13: ='Compteur de cordée (Séance)'!E13 -> Armand | E13: 5 | F13: 0 | G13: 0 | H13: 0 | I13: 5 | J13: 0 | K13: 5 | L13: 0 | M13: 0 | N13: 0 | O13: 0 | P13: 0 | Q13: 0 | R13: 0 | S13: 7 | T13: 14 | U13: 0 | W13: 1 | X13: 4 | Y13: 11 | Z13: 0 | AA13: 6 | AB13: 20 | AC13: 78 | AD13: 78 | BC13: 6 | BD13: 5 | BG13: 5 | BH13: 0 | BI13: 0 | BJ13: 0 | BK13: 5 | BL13: 0 | BM13: 5 | BN13: 0 | BO13: 0 | BP13: 0 | BQ13: 0 | BR13: 0 | BS13: 0 | BT13: 0 | BU13: 7 | BV13: 14 | BW13: 0 | BX13: 0 | BY13: 1 | BZ13: 4 | CA13: 11 | CB13: 0 | CC13: 12 | CD13: 25
D14: ='Compteur de cordée (Séance)'!E14 -> Mathys | E14: 17 | F14: 14 | G14: 0 | H14: 0 | I14: 0 | J14: 0 | K14: 0 | L14: 0 | M14: 0 | N14: 12 | O14: 0 | P14: 0 | Q14: 0 | R14: 0 | S14: 7 | T14: 7 | U14: 14 | V14: 0 | W14: 2 | X14: 0 | Y14: 0 | Z14: 0 | AA14: 7 | AB14: 21 | AC14: 101 | AD14: 101 | BC14: 7 | BD14: 7 | BG14: 17 | BH14: 14 | BI14: 0 | BJ14: =AJ14+H14 -> 0 | BK14: =AK14+I14 -> 0 | BL14: =AL14+J14 -> 0 | BM14: =AM14+K14 -> 0 | BN14: =AN14+L14 -> 0 | BO14: =AO14+M14 -> 0 | BP14: =AP14+N14 -> 12 | BQ14: =AQ14+O14 -> 0 | BR14: =AR14+P14 -> 0 | BS14: =AS14+Q14 -> 0 | BT14: =AT14+R14 -> 0 | BU14: =AU14+S14 -> 7 | BV14: =AV14+T14 -> 7 | BW14: =AW14+U14 -> 14 | BX14: =AX14+V14 -> 0 | BY14: =AY14+W14 -> 2 | BZ14: =AZ14+X14 -> 0 | CA14: =BA14+Y14 -> 0 | CB14: =BB14+Z14 -> 0 | CC14: =BC14+AA14 -> 14 | CD14: =BD14+AB14 -> 28
C15: 5 | D15: ='Compteur de cordée (Séance)'!E15 -> Julie | E15: 28 | F15: 21 | G15: 0 | H15: 0 | I15: 0 | J15: 0 | K15: 0 | L15: 0 | M15: 4 | N15: 5 | O15: 0 | P15: 4 | Q15: 4 | R15: 0 | S15: 0 | T15: 7 | U15: 0 | V15: 0 | W15: 0 | X15: 0 | Y15: 0 | Z15: 0 | AA15: 0 | AB15: 35 | AC15: 108 | AD15: 108 | AE15: =SUM(AD15:AD17) -> 266 | AG15: 7 | AH15: 7 | BG15: 35 | BH15: =AH15+F15 -> 28 | BI15: =AI15+G15 -> 0 | BJ15: 0 | BK15: 0 | BL15: 0 | BM15: 0 | BN15: 0 | BO15: 4 | BP15: 5 | BQ15: 0 | BR15: 4 | BS15: 4 | BT15: 0 | BU15: 0 | BV15: 7 | BW15: 0 | BX15: 0 | BY15: 0 | BZ15: 0 | CA15: 0 | CB15: 0 | CC15: 0 | CD15: 35
D16: ='Compteur de cordée (Séance)'!E16 -> Lesly | E16: 23 | F16: 7 | G16: 0 | H16: 0 | I16: 5 | J16: 0 | K16: 0 | L16: 0 | M16: 11 | N16: 5 | O16: 0 | P16: 0 | Q16: 3 | R16: 0 | S16: 5 | T16: 0 | U16: 21 | V16: 0 | W16: 0 | X16: 0 | Y16: 10 | Z16: 0 | AA16: 0 | AB16: 14 | AC16: 104 | AD16: 104 | AG16: 7 | AH16: 7 | BG16: 30 | BH16: 14 | BI16: 0 | BJ16: 0 | BK16: 5 | BL16: 0 | BM16: 0 | BN16: 0 | BO16: 11 | BP16: 5 | BQ16: 0 | BR16: 0 | BS16: 3 | BT16: 0 | BU16: 5 | BV16: 0 | BW16: 21 | BX16: 0 | BY16: 0 | BZ16: 0 | CA16: 10 | CB16: 0 | CC16: 0 | CD16: 14
D17: ='Compteur de cordée (Séance)'!E17 -> Mathilda | E17: 5 | F17: 7 | G17: 0 | H17: 0 | I17: 0 | J17: 0 | K17: 0 | L17: 0 | M17: 1 | O17: 0 | P17: 4 | Q17: 2 | R17: 0 | S17: 0 | T17: 7 | U17: 7 | V17: 0 | W17: 0 | X17: 0 | Y17: 0 | Z17: 0 | AA17: 0 | AB17: 21 | AC17: 54 | AD17: 54 | AG17: 5 | AH17: 7 | BG17: 10 | BH17: 14 | BI17: 0 | BJ17: 0 | BK17: 0 | BL17: 0 | BM17: 0 | BN17: 0 | BO17: 1 | BP17: 0 | BQ17: 0 | BR17: 4 | BS17: 2 | BT17: 0 | BU17: 0 | BV17: 7 | BW17: 7 | BX17: 0 | BY17: 0 | BZ17: 0 | CA17: 0 | CB17: 0 | CC17: 0 | CD17: 21
C18: 6 | D18: ='Compteur de cordée (Séance)'!E18 -> Léa | E18: 11 | F18: 7 | G18: 7 | H18: 0 | I18: 4 | J18: 7 | K18: 0 | L18: 7 | M18: 3 | N18: 0 | O18: 0 | P18: 8 | Q18: 0 | R18: 0 | S18: 16 | T18: 14 | U18: 14 | V18: 7 | W18: 0 | X18: 0 | Y18: 7 | Z18: 0 | AA18: 14 | AB18: 14 | AC18: 140 | AD18: 140 | AE18: =SUM(AD18:AD20) -> 364 | AH18: 7 | BC18: 7 | BD18: 7 | BG18: 11 | BH18: 14 | BI18: 7 | BJ18: 0 | BK18: 4 | BL18: 7 | BM18: 0 | BN18: 7 | BO18: 3 | BP18: 0 | BQ18: 0 | BR18: 8 | BS18: 0 | BT18: 0 | BU18: 16 | BV18: 14 | BW18: 14 | BX18: 7 | BY18: 0 | BZ18: 0 | CA18: 7 | CB18: 0 | CC18: 21 | CD18: 21
D19: ='Compteur de cordée (Séance)'!E19 -> Mathéo | E19: 7 | F19: 3 | G19: 7 | H19: 0 | I19: 0 | J19: 7 | K19: 0 | L19: 0 | M19: 10 | N19: 0 | O19: 0 | P19: 0 | Q19: 0 | R19: 0 | S19: 13 | T19: 14 | U19: 14 | V19: 7 | W19: 0 | X19: 0 | Y19: 0 | Z19: 0 | AA19: 11 | AB19: 28 | AC19: 121 | AD19: 121 | AH19: 3 | BC19: 6 | BD19: 7 | BG19: 7 | BH19: 6 | BI19: 7 | BJ19: 0 | BK19: 0 | BL19: 7 | BM19: 0 | BN19: 0 | BO19: 10 | BP19: 0 | BQ19: 0 | BR19: 0 | BS19: 0 | BT19: 0 | BU19: 13 | BV19: 14 | BW19: 14 | BX19: 7 | BY19: 0 | BZ19: 0 | CA19: 0 | CB19: 0 | CC19: 17 | CD19: 35
D20: ='Compteur de cordée (Séance)'!E20 -> Gwendoline | E20: 18 | F20: 1 | G20: 5 | H20: 0 | I20: 0 | J20: 7 | K20: 0 | L20: 0 | M20: 1 | N20: 3 | O20: 0 | P20: 4 | Q20: 0 | R20: 0 | S20: 9 | T20: 0 | U20: 35 | V20: 0 | W20: 0 | X20: 0 | Y20: 0 | Z20: 0 | AA20: 8 | AB20: 12 | AC20: 103 | AD20: 103 | AH20: 1 | BC20: 6 | BD20: 7 | BG20: 18 | BH20: 2 | BI20: 5 | BJ20: 0 | BK20: 0 | BL20: 7 | BM20: 0 | BN20: 0 | BO20: 1 | BP20: 3 | BQ20: 0 | BR20: 4 | BS20: 0 | BT20: 0 | BU20: 9 | BV20: 0 | BW20: 35 | BX20: 0 | BY20: 0 | BZ20: 0 | CA20: 0 | CB20: 0 | CC20: 14 | CD20: 19
C21: 7 | D21: ='Compteur de cordée (Séance)'!E21 -> 0 | E21: 0 | F21: 0 | G21: 0 | H21: 0 | I21: 0 | J21: 0 | K21: 0 | L21: 0 | M21: 0 | N21: 0 | O21: 0 | P21: 0 | Q21: 0 | R21: 0 | S21: 0 | T21: 0 | U21: 0 | V21: 0 | W21: 0 | X21: 0 | Y21: 0 | Z21: 0 | AA21: 0 | AB21: 0 | AC21: 0 | AD21: 0 | AE21: =SUM(AD21:AD23) -> 0 | BG21: 0 | BH21: 0 | BI21: 0 | BJ21: 0 | BK21: 0 | BL21: 0 | BM21: 0 | BN21: 0 | BO21: 0 | BP21: 0 | BQ21: 0 | BR21: 0 | BS21: 0 | BT21: 0 | BU21: 0 | BV21: 0 | BW21: 0 | BX21: 0 | BY21: 0 | BZ21: 0 | CA21: 0 | CB21: 0 | CC21: 0 | CD21: 0
D22: ='Compteur de cordée (Séance)'!E22 -> 0 | E22: 0 | F22: 0 | G22: 0 | H22: 0 | I22: 0 | J22: 0 | K22: 0 | L22: 0 | M22: 0 | N22: 0 | O22: 0 | P22: 0 | Q22: 0 | R22: 0 | S22: 0 | T22: 0 | U22: 0 | V22: 0 | W22: 0 | X22: 0 | Y22: 0 | Z22: 0 | AA22: 0 | AB22: 0 | AC22: 0 | AD22: 0 | BG22: 0 | BH22: 0 | BI22: 0 | BJ22: 0 | BK22: 0 | BL22: 0 | BM22: 0 | BN22: 0 | BO22: 0 | BP22: 0 | BQ22: 0 | BR22: 0 | BS22: 0 | BT22: 0 | BU22: 0 | BV22: 0 | BW22: 0 | BX22: 0 | BY22: 0 | BZ22: 0 | CA22: 0 | CB22: 0 | CC22: 0 | CD22: 0
D23: ='Compteur de cordée (Séance)'!E23 -> 0 | E23: 0 | F23: 0 | G23: 0 | H23: 0 | I23: 0 | J23: 0 | K23: 0 | L23: 0 | M23: 0 | N23: 0 | O23: 0 | P23: 0 | Q23: 0 | R23: 0 | S23: 0 | T23: 0 | U23: 0 | V23: 0 | W23: 0 | X23: 0 | Y23: 0 | Z23: 0 | AA23: 0 | AB23: 0 | AC23: 0 | AD23: 0 | BG23: 0 | BH23: 0 | BI23: 0 | BJ23: 0 | BK23: 0 | BL23: 0 | BM23: 0 | BN23: 0 | BO23: 0 | BP23: 0 | BQ23: 0 | BR23: 0 | BS23: 0 | BT23: 0 | BU23: 0 | BV23: 0 | BW23: 0 | BX23: 0 | BY23: 0 | BZ23: 0 | CA23: 0 | CB23: 0 | CC23: 0 | CD23: 0
C24: 8 | D24: ='Compteur de cordée (Séance)'!E24 -> 0 | E24: 0 | F24: 0 | G24: 0 | H24: 0 | I24: 0 | J24: 0 | K24: 0 | L24: 0 | M24: 0 | N24: 0 | O24: 0 | P24: 0 | Q24: 0 | R24: 0 | S24: 0 | T24: 0 | U24: 0 | V24: 0 | W24: 0 | X24: 0 | Y24: 0 | Z24: 0 | AA24: 0 | AB24: 0 | AC24: 0 | AD24: 0 | AE24: =SUM(AD24:AD26) -> 0 | BG24: 0 | BH24: 0 | BI24: 0 | BJ24: 0 | BK24: 0 | BL24: 0 | BM24: 0 | BN24: 0 | BO24: 0 | BP24: 0 | BQ24: 0 | BR24: 0 | BS24: 0 | BT24: 0 | BU24: 0 | BV24: 0 | BW24: 0 | BX24: 0 | BY24: 0 | BZ24: 0 | CA24: 0 | CB24: 0 | CC24: 0 | CD24: 0
D25: ='Compteur de cordée (Séance)'!E25 -> 0 | E25: 0 | F25: 0 | G25: 0 | H25: 0 | I25: 0 | J25: 0 | K25: 0 | L25: 0 | M25: 0 | N25: 0 | O25: 0 | P25: 0 | Q25: 0 | R25: 0 | S25: 0 | T25: 0 | U25: 0 | V25: 0 | W25: 0 | X25: 0 | Y25: 0 | Z25: 0 | AA25: 0 | AB25: 0 | AC25: 0 | AD25: 0 | BG25: 0 | BH25: 0 | BI25: 0 | BJ25: 0 | BK25: 0 | BL25: 0 | BM25: 0 | BN25: 0 | BO25: 0 | BP25: 0 | BQ25: 0 | BR25: 0 | BS25: 0 | BT25: 0 | BU25: 0 | BV25: 0 | BW25: 0 | BX25: 0 | BY25: 0 | BZ25: 0 | CA25: 0 | CB25: 0 | CC25: 0 | CD25: 0
D26: ='Compteur de cordée (Séance)'!E26 -> 0 | E26: 0 | F26: 0 | G26: 0 | H26: 0 | I26: 0 | J26: 0 | K26: 0 | L26: 0 | M26: 0 | N26: 0 | O26: 0 | P26: 0 | Q26: 0 | R26: 0 | S26: 0 | T26: 0 | U26: 0 | V26: 0 | W26: 0 | X26: 0 | Y26: 0 | Z26: 0 | AA26: 0 | AB26: 0 | AC26: 0 | AD26: 0 | BG26: 0 | BH26: 0 | BI26: 0 | BJ26: 0 | BK26: 0 | BL26: 0 | BM26: 0 | BN26: 0 | BO26: 0 | BP26: 0 | BQ26: 0 | BR26: 0 | BS26: 0 | BT26: 0 | BU26: 0 | BV26: 0 | BW26: 0 | BX26: 0 | BY26: 0 | BZ26: 0 | CA26: 0 | CB26: 0 | CC26: 0 | CD26: 0
C27: Cordée de 4 n°1 | D27: ='Compteur de cordée (Séance)'!E27 -> 0 | E27: 0 | F27: 0 | G27: 0 | H27: 0 | I27: 0 | J27: 0 | K27: 0 | L27: 0 | M27: 0 | N27: 0 | O27: 0 | P27: 0 | Q27: 0 | R27: 0 | S27: 0 | T27: 0 | U27: 0 | V27: 0 | W27: 0 | X27: 0 | Y27: 0 | Z27: 0 | AA27: 0 | AB27: 0 | AC27: 0 | AD27: 0 | AE27: =SUM(AD27:AD30) -> 0 | BG27: 0 | BH27: 0 | BI27: 0 | BJ27: 0 | BK27: 0 | BL27: 0 | BM27: 0 | BN27: 0 | BO27: 0 | BP27: 0 | BQ27: 0 | BR27: 0 | BS27: 0 | BT27: 0 | BU27: 0 | BV27: 0 | BW27: 0 | BX27: 0 | BY27: 0 | BZ27: 0 | CA27: 0 | CB27: 0 | CC27: 0 | CD27: 0
D28: ='Compteur de cordée (Séance)'!E28 -> 0 | E28: 0 | F28: 0 | G28: 0 | H28: 0 | I28: 0 | J28: 0 | K28: 0 | L28: 0 | M28: 0 | N28: 0 | O28: 0 | P28: 0 | Q28: 0 | R28: 0 | S28: 0 | T28: 0 | U28: 0 | V28: 0 | W28: 0 | X28: 0 | Y28: 0 | Z28: 0 | AA28: 0 | AB28: 0 | AC28: 0 | AD28: 0 | BG28: 0 | BH28: 0 | BI28: 0 | BJ28: 0 | BK28: 0 | BL28: 0 | BM28: 0 | BN28: 0 | BO28: 0 | BP28: 0 | BQ28: 0 | BR28: 0 | BS28: 0 | BT28: 0 | BU28: 0 | BV28: 0 | BW28: 0 | BX28: 0 | BY28: 0 | BZ28: 0 | CA28: 0 | CB28: 0 | CC28: 0 | CD28: 0
D29: ='Compteur de cordée (Séance)'!E29 -> 0 | E29: 0 | F29: 0 | G29: 0 | H29: 0 | I29: 0 | J29: 0 | K29: 0 | L29: 0 | M29: 0 | N29: 0 | O29: 0 | P29: 0 | Q29: 0 | R29: 0 | S29: 0 | T29: 0 | U29: 0 | V29: 0 | W29: 0 | X29: 0 | Y29: 0 | Z29: 0 | AA29: 0 | AB29: 0 | AC29: 0 | AD29: 0 | BG29: 0 | BH29: 0 | BI29: 0 | BJ29: 0 | BK29: 0 | BL29: 0 | BM29: 0 | BN29: 0 | BO29: 0 | BP29: 0 | BQ29: 0 | BR29: 0 | BS29: 0 | BT29: 0 | BU29: 0 | BV29: 0 | BW29: 0 | BX29: 0 | BY29: 0 | BZ29: 0 | CA29: 0 | CB29: 0 | CC29: 0 | CD29: 0
D30: ='Compteur de cordée (Séance)'!E30 -> 0 | E30: 0 | F30: 0 | G30: 0 | H30: 0 | I30: 0 | J30: 0 | K30: 0 | L30: 0 | M30: 0 | N30: 0 | O30: 0 | P30: 0 | Q30: 0 | R30: 0 | S30: 0 | T30: 0 | U30: 0 | V30: 0 | W30: 0 | X30: 0 | Y30: 0 | Z30: 0 | AA30: 0 | AB30: 0 | AC30: 0 | AD30: 0 | BG30: 0 | BH30: 0 | BI30: 0 | BJ30: 0 | BK30: 0 | BL30: 0 | BM30: 0 | BN30: 0 | BO30: 0 | BP30: 0 | BQ30: 0 | BR30: 0 | BS30: 0 | BT30: 0 | BU30: 0 | BV30: 0 | BW30: 0 | BX30: 0 | BY30: 0 | BZ30: 0 | CA30: 0 | CB30: 0 | CC30: 0 | CD30: 0
C31: Cordée de 4 n°2 | D31: ='Compteur de cordée (Séance)'!E31 -> 0 | E31: 0 | F31: 0 | G31: 0 | H31: 0 | I31: 0 | J31: 0 | K31: 0 | L31: 0 | M31: 0 | N31: 0 | O31: 0 | P31: 0 | Q31: 0 | R31: 0 | S31: 0 | T31: 0 | U31: 0 | V31: 0 | W31: 0 | X31: 0 | Y31: 0 | Z31: 0 | AA31: 0 | AB31: 0 | AC31: 0 | AD31: 0 | AE31: =SUM(AD31:AD34) -> 0 | BG31: 0 | BH31: 0 | BI31: 0 | BJ31: 0 | BK31: 0 | BL31: 0 | BM31: 0 | BN31: 0 | BO31: 0 | BP31: 0 | BQ31: 0 | BR31: 0 | BS31: 0 | BT31: 0 | BU31: 0 | BV31: 0 | BW31: 0 | BX31: 0 | BY31: 0 | BZ31: 0 | CA31: 0 | CB31: 0 | CC31: 0 | CD31: 0
D32: ='Compteur de cordée (Séance)'!E32 -> 0 | E32: 0 | F32: 0 | G32: 0 | H32: 0 | I32: 0 | J32: 0 | K32: 0 | L32: 0 | M32: 0 | N32: 0 | O32: 0 | P32: 0 | Q32: 0 | R32: 0 | S32: 0 | T32: 0 | U32: 0 | V32: 0 | W32: 0 | X32: 0 | Y32: 0 | Z32: 0 | AA32: 0 | AB32: 0 | AC32: 0 | AD32: 0 | BG32: 0 | BH32: 0 | BI32: 0 | BJ32: 0 | BK32: 0 | BL32: 0 | BM32: 0 | BN32: 0 | BO32: 0 | BP32: 0 | BQ32: 0 | BR32: 0 | BS32: 0 | BT32: 0 | BU32: 0 | BV32: 0 | BW32: 0 | BX32: 0 | BY32: 0 | BZ32: 0 | CA32: 0 | CB32: 0 | CC32: 0 | CD32: 0
D33: ='Compteur de cordée (Séance)'!E33 -> 0 | E33: 0 | F33: 0 | G33: 0 | H33: 0 | I33: 0 | J33: 0 | K33: 0 | L33: 0 | M33: 0 | N33: 0 | O33: 0 | P33: 0 | Q33: 0 | R33: 0 | S33: 0 | T33: 0 | U33: 0 | V33: 0 | W33: 0 | X33: 0 | Y33: 0 | Z33: 0 | AA33: 0 | AB33: 0 | AC33: 0 | AD33: 0 | BG33: 0 | BH33: 0 | BI33: 0 | BJ33: 0 | BK33: 0 | BL33: 0 | BM33: 0 | BN33: 0 | BO33: 0 | BP33: 0 | BQ33: 0 | BR33: 0 | BS33: 0 | BT33: 0 | BU33: 0 | BV33: 0 | BW33: 0 | BX33: 0 | BY33: 0 | BZ33: 0 | CA33: 0 | CB33: 0 | CC33: 0 | CD33: 0
D34: ='Compteur de cordée (Séance)'!E34 -> 0 | E34: 0 | F34: 0 | G34: 0 | H34: 0 | I34: 0 | J34: 0 | K34: 0 | L34: 0 | M34: 0 | N34: 0 | O34: 0 | P34: 0 | Q34: 0 | R34: 0 | S34: 0 | T34: 0 | U34: 0 | V34: 0 | W34: 0 | X34: 0 | Y34: 0 | Z34: 0 | AA34: 0 | AB34: 0 | AC34: 0 | AD34: 0 | BG34: 0 | BH34: 0 | BI34: 0 | BJ34: 0 | BK34: 0 | BL34: 0 | BM34: 0 | BN34: 0 | BO34: 0 | BP34: 0 | BQ34: 0 | BR34: 0 | BS34: 0 | BT34: 0 | BU34: 0 | BV34: 0 | BW34: 0 | BX34: 0 | BY34: 0 | BZ34: 0 | CA34: 0 | CB34: 0 | CC34: 0 | CD34: 0
